[Event "Titled Tuesday Blitz March 14 Early 2023"]
[White "Fiorito, Francisco"]
[Black "Bochnicka, Vladimir"]
[WhiteFideId "180165"]
[BlackFideId "14943450"]
[WhiteElo "2341"]
[BlackElo "2094"]
[Result "1-0"]
[Round "10"]
[TimeControl "180+2"]
[Date "2023.03.14"]
[WhiteClock "0:00:56"]
[BlackClock "0:00:01"]

1. d4 {[%clk 0:03:00]}  Nf6 {[%clk 0:02:57]} 2. Nc3 {[%clk 0:03:01]}  d5 {[%clk 0:02:56]} 3. Bf4 {[%clk 0:03:01]}  g6 {[%clk 0:02:55]} 4. e3 {[%clk 0:03:01]}  Bg7 {[%clk 0:02:55]} 5. Nf3 {[%clk 0:03:00]}  O-O {[%clk 0:02:56]} 6. Be2 {[%clk 0:02:59]}  c5 {[%clk 0:02:54]} 7. dxc5 {[%clk 0:02:59]}  Nc6 {[%clk 0:02:54]} 8. O-O {[%clk 0:02:55]}  Re8 {[%clk 0:02:50]} 9. Ne5 {[%clk 0:02:54]}  Nd7 {[%clk 0:02:39]} 10. Nxd7 {[%clk 0:02:49]}  Bxd7 {[%clk 0:02:34]} 11. Nxd5 {[%clk 0:02:47]}  Rc8 {[%clk 0:02:22]} 12. c3 {[%clk 0:02:45]}  e6 {[%clk 0:02:19]} 13. Nb4 {[%clk 0:02:42]}  Ne7 {[%clk 0:02:14]} 14. Nd3 {[%clk 0:02:35]}  h6 {[%clk 0:01:57]} 15. Bf3 {[%clk 0:02:34]}  Bc6 {[%clk 0:01:54]} 16. Be5 {[%clk 0:02:24]}  Bxf3 {[%clk 0:01:51]} 17. gxf3 {[%clk 0:02:25]}  Qd5 {[%clk 0:01:47]} 18. Bxg7 {[%clk 0:02:21]}  Kxg7 {[%clk 0:01:48]} 19. Nf4 {[%clk 0:02:21]}  Qxc5 {[%clk 0:01:44]} 20. Qd4+ {[%clk 0:02:22]}  Qxd4 {[%clk 0:01:44]} 21. exd4 {[%clk 0:02:22]}  Nf5 {[%clk 0:01:41]} 22. Rfe1 {[%clk 0:02:22]}  Nh4 {[%clk 0:01:27]} 23. Re3 {[%clk 0:02:21]}  g5 {[%clk 0:01:27]} 24. Nd3 {[%clk 0:02:17]}  f5 {[%clk 0:01:27]} 25. Ne5 {[%clk 0:02:13]}  Rc7 {[%clk 0:01:15]} 26. Rae1 {[%clk 0:02:13]}  Kf6 {[%clk 0:01:13]} 27. Kf1 {[%clk 0:02:13]}  Rg8 {[%clk 0:01:10]} 28. Ke2 {[%clk 0:02:12]}  Ng2 {[%clk 0:01:06]} 29. Rg1 {[%clk 0:02:09]}  Nxe3 {[%clk 0:01:06]} 30. fxe3 {[%clk 0:02:10]}  h5 {[%clk 0:01:03]} 31. h3 {[%clk 0:02:10]}  Rcg7 {[%clk 0:00:53]} 32. Rg3 {[%clk 0:02:08]}  f4 {[%clk 0:00:41]} 33. Rg2 {[%clk 0:02:05]}  fxe3 {[%clk 0:00:42]} 34. Kxe3 {[%clk 0:02:06]}  Kf5 {[%clk 0:00:41]} 35. b4 {[%clk 0:01:59]}  Rc7 {[%clk 0:00:40]} 36. c4 {[%clk 0:01:58]}  b5 {[%clk 0:00:27]} 37. c5 {[%clk 0:01:56]}  Ra8 {[%clk 0:00:27]} 38. h4 {[%clk 0:01:49]}  gxh4 {[%clk 0:00:26]} 39. Rh2 {[%clk 0:01:48]}  a5 {[%clk 0:00:23]} 40. Rxh4 {[%clk 0:01:44]}  Kg5 {[%clk 0:00:23]} 41. Rh2 {[%clk 0:01:41]}  axb4 {[%clk 0:00:24]} 42. f4+ {[%clk 0:01:41]}  Kh6 {[%clk 0:00:21]} 43. Ng4+ {[%clk 0:01:42]}  Kg6 {[%clk 0:00:20]} 44. Ne5+ {[%clk 0:01:42]}  Kg7 {[%clk 0:00:19]} 45. Rg2+ {[%clk 0:01:41]}  Kh7 {[%clk 0:00:17]} 46. Rh2 {[%clk 0:01:41]}  Ra3+ {[%clk 0:00:17]} 47. Ke4 {[%clk 0:01:41]}  Kh6 {[%clk 0:00:09]} 48. Ng4+ {[%clk 0:01:39]}  Kg7 {[%clk 0:00:10]} 49. Ne5 {[%clk 0:01:33]}  Rc8 {[%clk 0:00:10]} 50. c6 {[%clk 0:01:29]}  b3 {[%clk 0:00:06]} 51. axb3 {[%clk 0:01:28]}  Rxb3 {[%clk 0:00:07]} 52. Rxh5 {[%clk 0:01:28]}  b4 {[%clk 0:00:07]} 53. Rg5+ {[%clk 0:01:28]}  Kf8 {[%clk 0:00:06]} 54. Rg6 {[%clk 0:01:27]}  Ke7 {[%clk 0:00:03]} 55. Rg7+ {[%clk 0:01:28]}  Ke8 {[%clk 0:00:02]} 56. Rb7 {[%clk 0:01:28]}  Rb1 {[%clk 0:00:02]} 57. f5 {[%clk 0:01:15]}  exf5+ {[%clk 0:00:02]} 58. Kxf5 {[%clk 0:01:15]}  b3 {[%clk 0:00:02]} 59. Ke6 {[%clk 0:01:09]}  b2 {[%clk 0:00:02]} 60. d5 {[%clk 0:01:08]}  Kf8 {[%clk 0:00:01]} 61. Rb3 {[%clk 0:00:56]} 1-0


[Site "https://www.chess.com"]

[Event "Titled Tuesday Blitz March 14 Early 2023"]
[White "Manukian, Artak"]
[Black "Dzhumagaliev, Yan"]
[WhiteFideId "13301373"]
[BlackFideId "24100110"]
[WhiteElo "2130"]
[BlackElo "2476"]
[Result "0-1"]
[Round "10"]
[TimeControl "180+2"]
[Date "2023.03.14"]
[WhiteClock "0:00:06"]
[BlackClock "0:00:55"]

1. e4 {[%clk 0:03:00]}  h5 {[%clk 0:02:59]} 2. d4 {[%clk 0:03:00]}  h4 {[%clk 0:03:00]} 3. Bd3 {[%clk 0:02:58]}  c6 {[%clk 0:03:01]} 4. Nc3 {[%clk 0:02:57]}  d5 {[%clk 0:03:02]} 5. exd5 {[%clk 0:02:56]}  cxd5 {[%clk 0:03:03]} 6. h3 {[%clk 0:02:55]}  Nf6 {[%clk 0:03:03]} 7. Nf3 {[%clk 0:02:55]}  Nc6 {[%clk 0:03:03]} 8. Bf4 {[%clk 0:02:55]}  a6 {[%clk 0:03:03]} 9. Qe2 {[%clk 0:02:54]}  g6 {[%clk 0:03:03]} 10. O-O-O {[%clk 0:02:53]}  Bf5 {[%clk 0:03:04]} 11. Bxf5 {[%clk 0:02:52]}  gxf5 {[%clk 0:03:04]} 12. Ne5 {[%clk 0:02:50]}  Ne4 {[%clk 0:03:05]} 13. Nxe4 {[%clk 0:02:42]}  fxe4 {[%clk 0:03:05]} 14. f3 {[%clk 0:02:41]}  Nxe5 {[%clk 0:02:52]} 15. dxe5 {[%clk 0:02:38]}  exf3 {[%clk 0:02:52]} 16. Qxf3 {[%clk 0:02:32]}  e6 {[%clk 0:02:53]} 17. Kb1 {[%clk 0:02:31]}  Qc7 {[%clk 0:02:48]} 18. Rc1 {[%clk 0:02:19]}  b5 {[%clk 0:02:43]} 19. Rhf1 {[%clk 0:02:09]}  O-O-O {[%clk 0:02:37]} 20. Bg5 {[%clk 0:02:08]}  Rd7 {[%clk 0:02:38]} 21. Bf6 {[%clk 0:02:07]}  Rg8 {[%clk 0:02:36]} 22. Rfe1 {[%clk 0:01:54]}  Bh6 {[%clk 0:02:24]} 23. Rcd1 {[%clk 0:01:51]}  Rg3 {[%clk 0:02:23]} 24. Qf1 {[%clk 0:01:39]}  Bg5 {[%clk 0:02:15]} 25. Bxg5 {[%clk 0:01:29]}  Rxg5 {[%clk 0:02:16]} 26. Qe2 {[%clk 0:01:19]}  Kb7 {[%clk 0:02:13]} 27. a4 {[%clk 0:01:17]}  Qc4 {[%clk 0:02:09]} 28. axb5 {[%clk 0:01:12]}  axb5 {[%clk 0:02:09]} 29. Qf2 {[%clk 0:00:56]}  Rf5 {[%clk 0:02:05]} 30. Qe3 {[%clk 0:00:51]}  d4 {[%clk 0:01:58]} 31. Qe4+ {[%clk 0:00:51]}  Kb6 {[%clk 0:01:55]} 32. Qxh4 {[%clk 0:00:50]}  Rd5 {[%clk 0:01:32]} 33. g4 {[%clk 0:00:39]}  Rf3 {[%clk 0:01:27]} 34. Qe7 {[%clk 0:00:22]}  d3 {[%clk 0:01:20]} 35. cxd3 {[%clk 0:00:20]}  Rfxd3 {[%clk 0:01:19]} 36. Rc1 {[%clk 0:00:18]}  Rd1 {[%clk 0:01:09]} 37. Rexd1 {[%clk 0:00:11]}  Qe4+ {[%clk 0:01:10]} 38. Ka2 {[%clk 0:00:10]}  Qa4+ {[%clk 0:01:01]} 39. Qa3 {[%clk 0:00:09]}  Qxd1 {[%clk 0:00:56]} 40. Rxd1 {[%clk 0:00:08]}  Rxd1 {[%clk 0:00:57]} 41. Qe7 {[%clk 0:00:08]}  Rf1 {[%clk 0:00:57]} 42. h4 {[%clk 0:00:08]}  Rf4 {[%clk 0:00:55]} 43. h5 {[%clk 0:00:08]}  b4 {[%clk 0:00:55]} 44. h6 {[%clk 0:00:06]}  Kb5 {[%clk 0:00:56]} 45. Qd7+ {[%clk 0:00:06]}  Kc4 {[%clk 0:00:55]} 0-1


[Site "https://www.chess.com"]

[Event "Titled Tuesday Blitz March 14 Early 2023"]
[White "Staudenhocker43"]
[Black "Garv Gaur"]
[BlackFideId "45030839"]
[WhiteElo "2428"]
[BlackElo "2068"]
[Result "1-0"]
[Round "10"]
[TimeControl "180+2"]
[Date "2023.03.14"]
[WhiteClock "0:00:11"]
[BlackClock "0:00:03"]

1. d4 {[%clk 0:03:00]}  Nf6 {[%clk 0:02:55]} 2. c4 {[%clk 0:03:01]}  e6 {[%clk 0:02:51]} 3. Nf3 {[%clk 0:03:01]}  b6 {[%clk 0:02:51]} 4. g3 {[%clk 0:03:00]}  Ba6 {[%clk 0:02:51]} 5. b3 {[%clk 0:03:00]}  Bb4+ {[%clk 0:02:51]} 6. Bd2 {[%clk 0:03:00]}  Be7 {[%clk 0:02:51]} 7. Nc3 {[%clk 0:03:01]}  d5 {[%clk 0:02:51]} 8. cxd5 {[%clk 0:03:00]}  exd5 {[%clk 0:02:51]} 9. Bg2 {[%clk 0:03:01]}  O-O {[%clk 0:02:50]} 10. O-O {[%clk 0:03:01]}  c5 {[%clk 0:02:49]} 11. dxc5 {[%clk 0:03:00]}  bxc5 {[%clk 0:02:50]} 12. Bf4 {[%clk 0:02:57]}  Bb7 {[%clk 0:02:46]} 13. Ne5 {[%clk 0:02:51]}  Nbd7 {[%clk 0:02:29]} 14. Nxd5 {[%clk 0:02:21]}  Bxd5 {[%clk 0:02:24]} 15. Bxd5 {[%clk 0:02:19]}  Nxe5 {[%clk 0:02:23]} 16. Bxa8 {[%clk 0:02:17]}  Qxa8 {[%clk 0:02:11]} 17. Bxe5 {[%clk 0:02:17]}  Ng4 {[%clk 0:02:11]} 18. Bf4 {[%clk 0:02:13]}  Rd8 {[%clk 0:02:09]} 19. Qc2 {[%clk 0:02:12]}  h5 {[%clk 0:02:08]} 20. Rad1 {[%clk 0:02:07]}  Re8 {[%clk 0:02:07]} 21. f3 {[%clk 0:02:05]}  Nf6 {[%clk 0:02:05]} 22. e4 {[%clk 0:02:05]}  h4 {[%clk 0:02:04]} 23. g4 {[%clk 0:02:04]}  Qc8 {[%clk 0:02:01]} 24. h3 {[%clk 0:02:02]}  Bd8 {[%clk 0:01:59]} 25. Rd3 {[%clk 0:01:44]}  Bb6 {[%clk 0:01:57]} 26. Kh1 {[%clk 0:01:42]}  Qb7 {[%clk 0:01:50]} 27. Kh2 {[%clk 0:01:17]}  Nh7 {[%clk 0:01:36]} 28. Qd2 {[%clk 0:01:12]}  Nf8 {[%clk 0:01:35]} 29. Kg2 {[%clk 0:01:03]}  Ng6 {[%clk 0:01:29]} 30. Bh2 {[%clk 0:01:01]}  Nf8 {[%clk 0:01:18]} 31. Rd5 {[%clk 0:01:00]}  Ne6 {[%clk 0:01:08]} 32. Rd7 {[%clk 0:00:57]}  Qc8 {[%clk 0:01:06]} 33. Qd5 {[%clk 0:00:53]}  Qa6 {[%clk 0:01:06]} 34. a4 {[%clk 0:00:50]}  Qe2+ {[%clk 0:01:02]} 35. Rf2 {[%clk 0:00:50]}  Qe1 {[%clk 0:00:59]} 36. Qd2 {[%clk 0:00:39]}  Qb1 {[%clk 0:00:59]} 37. Qc2 {[%clk 0:00:39]}  Qe1 {[%clk 0:00:55]} 38. Rd1 {[%clk 0:00:32]}  Qb4 {[%clk 0:00:52]} 39. Qc4 {[%clk 0:00:32]}  Qa3 {[%clk 0:00:50]} 40. Rfd2 {[%clk 0:00:27]}  Nd4 {[%clk 0:00:50]} 41. Bg1 {[%clk 0:00:23]}  Nxb3 {[%clk 0:00:40]} 42. Rd3 {[%clk 0:00:23]}  Qb2+ {[%clk 0:00:40]} 43. Kh1 {[%clk 0:00:20]}  Na5 {[%clk 0:00:39]} 44. Qc3 {[%clk 0:00:19]}  Qa2 {[%clk 0:00:38]} 45. Bxc5 {[%clk 0:00:19]}  Rc8 {[%clk 0:00:37]} 46. Rd5 {[%clk 0:00:18]}  Nb7 {[%clk 0:00:36]} 47. Qd2 {[%clk 0:00:16]}  Qxd2 {[%clk 0:00:34]} 48. R1xd2 {[%clk 0:00:16]}  Nxc5 {[%clk 0:00:33]} 49. Rc2 {[%clk 0:00:16]}  a5 {[%clk 0:00:28]} 50. Rd6 {[%clk 0:00:15]}  Ba7 {[%clk 0:00:26]} 51. Ra6 {[%clk 0:00:15]}  Bb8 {[%clk 0:00:15]} 52. Rxa5 {[%clk 0:00:13]}  Bd6 {[%clk 0:00:16]} 53. e5 {[%clk 0:00:11]}  Bf8 {[%clk 0:00:16]} 54. Rb5 {[%clk 0:00:11]}  Rc7 {[%clk 0:00:15]} 55. a5 {[%clk 0:00:11]}  Rd7 {[%clk 0:00:08]} 56. Rbxc5 {[%clk 0:00:11]}  Rd1+ {[%clk 0:00:07]} 57. Kg2 {[%clk 0:00:11]}  Bxc5 {[%clk 0:00:08]} 58. Rxc5 {[%clk 0:00:11]}  Rd2+ {[%clk 0:00:09]} 59. Kg1 {[%clk 0:00:11]}  g5 {[%clk 0:00:09]} 60. e6 {[%clk 0:00:11]}  f6 {[%clk 0:00:08]} 61. a6 {[%clk 0:00:09]}  Ra2 {[%clk 0:00:04]} 62. Rc8+ {[%clk 0:00:10]}  Kg7 {[%clk 0:00:04]} 63. e7 {[%clk 0:00:10]}  Ra1+ {[%clk 0:00:04]} 64. Kf2 {[%clk 0:00:10]}  Ra2+ {[%clk 0:00:05]} 65. Ke3 {[%clk 0:00:11]}  Ra1 {[%clk 0:00:05]} 66. Kd2 {[%clk 0:00:11]}  Rxa6 {[%clk 0:00:03]} 67. e8=Q {[%clk 0:00:11]}  Rd6+ {[%clk 0:00:03]} 68. Ke2 {[%clk 0:00:11]} 1-0


[Site "https://www.chess.com"]

[Event "Titled Tuesday Blitz March 14 Early 2023"]
[White "Valle Maytin, Luis Enrique"]
[Black "Odegov, Artem"]
[WhiteFideId "3503666"]
[BlackFideId "34183644"]
[WhiteElo "2225"]
[BlackElo "2300"]
[Result "0-1"]
[Round "10"]
[TimeControl "180+2"]
[Date "2023.03.14"]
[WhiteClock "0:00:30"]
[BlackClock "0:01:07"]

1. e4 {[%clk 0:03:00]}  e6 {[%clk 0:02:59]} 2. d4 {[%clk 0:03:00]}  d5 {[%clk 0:02:58]} 3. e5 {[%clk 0:02:58]}  c5 {[%clk 0:02:58]} 4. c3 {[%clk 0:02:57]}  Qb6 {[%clk 0:02:58]} 5. Nf3 {[%clk 0:02:56]}  Nc6 {[%clk 0:02:57]} 6. a3 {[%clk 0:02:51]}  Nh6 {[%clk 0:02:57]} 7. Bd3 {[%clk 0:02:42]}  cxd4 {[%clk 0:02:56]} 8. cxd4 {[%clk 0:02:43]}  Bd7 {[%clk 0:02:56]} 9. Bc2 {[%clk 0:02:43]}  Nf5 {[%clk 0:02:55]} 10. Bxf5 {[%clk 0:02:40]}  exf5 {[%clk 0:02:56]} 11. Nc3 {[%clk 0:02:41]}  Be6 {[%clk 0:02:52]} 12. O-O {[%clk 0:02:40]}  Be7 {[%clk 0:02:53]} 13. g3 {[%clk 0:02:41]}  O-O {[%clk 0:02:52]} 14. Ne2 {[%clk 0:02:41]}  Rac8 {[%clk 0:02:52]} 15. Nf4 {[%clk 0:02:36]}  Na5 {[%clk 0:02:52]} 16. Re1 {[%clk 0:02:29]}  Rc7 {[%clk 0:02:31]} 17. h4 {[%clk 0:01:52]}  Rfc8 {[%clk 0:02:25]} 18. Qd3 {[%clk 0:01:44]}  Nb3 {[%clk 0:02:17]} 19. Be3 {[%clk 0:01:42]}  Nxa1 {[%clk 0:02:15]} 20. Rxa1 {[%clk 0:01:43]}  Qxb2 {[%clk 0:02:14]} 21. Rb1 {[%clk 0:01:44]}  Qc2 {[%clk 0:02:13]} 22. Qf1 {[%clk 0:01:40]}  Bxa3 {[%clk 0:02:09]} 23. Ng5 {[%clk 0:01:40]}  Qc6 {[%clk 0:01:56]} 24. Qe2 {[%clk 0:01:27]}  h6 {[%clk 0:01:51]} 25. Nf3 {[%clk 0:01:24]}  Qc2 {[%clk 0:01:47]} 26. Qf1 {[%clk 0:01:23]}  Qxb1 {[%clk 0:01:40]} 27. Qxb1 {[%clk 0:01:19]}  Rc1+ {[%clk 0:01:40]} 28. Bxc1 {[%clk 0:01:19]}  Rxc1+ {[%clk 0:01:41]} 29. Qxc1 {[%clk 0:01:20]}  Bxc1 {[%clk 0:01:42]} 30. Nd3 {[%clk 0:01:19]}  Ba3 {[%clk 0:01:42]} 31. Kf1 {[%clk 0:01:18]}  Kf8 {[%clk 0:01:41]} 32. Ke1 {[%clk 0:01:18]}  Ke7 {[%clk 0:01:42]} 33. Kd2 {[%clk 0:01:18]}  Kd7 {[%clk 0:01:43]} 34. Kc3 {[%clk 0:01:19]}  Kc6 {[%clk 0:01:43]} 35. Kb3 {[%clk 0:01:19]}  Be7 {[%clk 0:01:43]} 36. Nf4 {[%clk 0:01:19]}  a5 {[%clk 0:01:42]} 37. Ka4 {[%clk 0:01:10]}  Bb4 {[%clk 0:01:28]} 38. Nh5 {[%clk 0:01:00]}  g6 {[%clk 0:01:23]} 39. Nf4 {[%clk 0:00:59]}  b5+ {[%clk 0:01:23]} 40. Kb3 {[%clk 0:00:59]}  Be7 {[%clk 0:01:24]} 41. Ne1 {[%clk 0:00:59]}  a4+ {[%clk 0:01:23]} 42. Ka2 {[%clk 0:00:59]}  b4 {[%clk 0:01:22]} 43. Ned3 {[%clk 0:00:59]}  b3+ {[%clk 0:01:23]} 44. Kb2 {[%clk 0:00:59]}  Kb5 {[%clk 0:01:23]} 45. Ne2 {[%clk 0:00:48]}  Kc4 {[%clk 0:01:19]} 46. Ndc1 {[%clk 0:00:48]}  a3+ {[%clk 0:01:18]} 47. Kb1 {[%clk 0:00:48]}  Bb4 {[%clk 0:01:18]} 48. f3 {[%clk 0:00:42]}  a2+ {[%clk 0:01:16]} 49. Nxa2 {[%clk 0:00:32]}  bxa2+ {[%clk 0:01:17]} 50. Kxa2 {[%clk 0:00:33]}  Be1 {[%clk 0:01:11]} 51. Kb2 {[%clk 0:00:30]}  Kd3 {[%clk 0:01:07]} 52. Nf4+ {[%clk 0:00:30]} 0-1


[Site "https://www.chess.com"]

[Event "Titled Tuesday Blitz March 14 Early 2023"]
[White "Klepikov, Nikita"]
[Black "Karttunen, Mika"]
[WhiteFideId "24145220"]
[BlackFideId "502081"]
[WhiteElo "2025"]
[BlackElo "2396"]
[Result "0-1"]
[Round "10"]
[TimeControl "180+2"]
[Date "2023.03.14"]
[WhiteClock "0:00:03"]
[BlackClock "0:00:04"]

1. e4 {[%clk 0:02:56]}  e6 {[%clk 0:02:59]} 2. d4 {[%clk 0:02:56]}  d5 {[%clk 0:03:00]} 3. Nc3 {[%clk 0:02:57]}  Bb4 {[%clk 0:02:59]} 4. Bd2 {[%clk 0:02:56]}  Nf6 {[%clk 0:02:49]} 5. e5 {[%clk 0:02:46]}  Bxc3 {[%clk 0:02:40]} 6. bxc3 {[%clk 0:02:43]}  Ne4 {[%clk 0:02:37]} 7. Bc1 {[%clk 0:02:43]}  c5 {[%clk 0:02:01]} 8. Qg4 {[%clk 0:01:24]}  Qa5 {[%clk 0:01:25]} 9. Ne2 {[%clk 0:01:24]}  cxd4 {[%clk 0:00:29]} 10. Qxg7 {[%clk 0:01:23]}  Rf8 {[%clk 0:00:27]} 11. f3 {[%clk 0:00:49]}  Nxc3 {[%clk 0:00:27]} 12. Kf2 {[%clk 0:00:43]}  Qc5 {[%clk 0:00:22]} 13. a4 {[%clk 0:00:28]}  Nd1+ {[%clk 0:00:22]} 14. Ke1 {[%clk 0:00:28]}  Ne3 {[%clk 0:00:18]} 15. Kf2 {[%clk 0:00:14]}  Nxc2 {[%clk 0:00:18]} 16. Ra2 {[%clk 0:00:08]}  d3+ {[%clk 0:00:18]} 17. Kg3 {[%clk 0:00:08]}  dxe2 {[%clk 0:00:18]} 18. Bxe2 {[%clk 0:00:09]}  Nd7 {[%clk 0:00:16]} 19. Bb5 {[%clk 0:00:08]}  Nd4 {[%clk 0:00:14]} 20. Ba3 {[%clk 0:00:07]}  Nf5+ {[%clk 0:00:14]} 21. Kh3 {[%clk 0:00:06]}  Nxg7 {[%clk 0:00:12]} 22. Bxc5 {[%clk 0:00:06]}  Rg8 {[%clk 0:00:12]} 23. Bd6 {[%clk 0:00:05]}  a6 {[%clk 0:00:12]} 24. Bxd7+ {[%clk 0:00:04]}  Bxd7 {[%clk 0:00:13]} 25. Rb2 {[%clk 0:00:04]}  Bc6 {[%clk 0:00:13]} 26. a5 {[%clk 0:00:04]}  Nf5 {[%clk 0:00:13]} 27. Bc5 {[%clk 0:00:04]}  h5 {[%clk 0:00:13]} 28. g4 {[%clk 0:00:04]}  hxg4+ {[%clk 0:00:13]} 29. fxg4 {[%clk 0:00:05]}  Nh6 {[%clk 0:00:10]} 30. Rb4 {[%clk 0:00:05]}  Kd7 {[%clk 0:00:10]} 31. Kg3 {[%clk 0:00:05]}  Nf5+ {[%clk 0:00:09]} 32. Kf4 {[%clk 0:00:05]}  Ne7 {[%clk 0:00:09]} 33. h4 {[%clk 0:00:05]}  Ng6+ {[%clk 0:00:09]} 34. Kg3 {[%clk 0:00:04]}  Rh8 {[%clk 0:00:10]} 35. h5 {[%clk 0:00:03]}  Ne7 {[%clk 0:00:08]} 36. Rf1 {[%clk 0:00:03]}  Rh7 {[%clk 0:00:08]} 37. Rbf4 {[%clk 0:00:03]}  Rf8 {[%clk 0:00:07]} 38. Rf6 {[%clk 0:00:03]}  Ke8 {[%clk 0:00:08]} 39. Bd6 {[%clk 0:00:03]}  Rg8 {[%clk 0:00:08]} 40. Kh4 {[%clk 0:00:03]}  d4 {[%clk 0:00:08]} 41. R1f4 {[%clk 0:00:03]}  Nd5 {[%clk 0:00:09]} 42. Rxd4 {[%clk 0:00:02]}  Nxf6 {[%clk 0:00:07]} 43. exf6 {[%clk 0:00:03]}  Kd7 {[%clk 0:00:08]} 44. Be7+ {[%clk 0:00:03]}  Kc8 {[%clk 0:00:08]} 45. g5 {[%clk 0:00:03]}  Rgh8 {[%clk 0:00:07]} 46. h6 {[%clk 0:00:04]}  Rg8 {[%clk 0:00:08]} 47. Kg4 {[%clk 0:00:04]}  Rhh8 {[%clk 0:00:06]} 48. Rd3 {[%clk 0:00:03]}  Kb8 {[%clk 0:00:07]} 49. Kf4 {[%clk 0:00:03]}  Ka8 {[%clk 0:00:07]} 50. Rg3 {[%clk 0:00:03]}  Rg6 {[%clk 0:00:06]} 51. Ke5 {[%clk 0:00:04]}  Bb5 {[%clk 0:00:05]} 52. Kd6 {[%clk 0:00:04]}  Rgg8 {[%clk 0:00:06]} 53. Ke5 {[%clk 0:00:04]}  Ba4 {[%clk 0:00:03]} 54. Kd6 {[%clk 0:00:05]}  Bc2 {[%clk 0:00:04]} 55. Kc7 {[%clk 0:00:05]}  Bg6 {[%clk 0:00:04]} 56. Kd6 {[%clk 0:00:05]}  Rc8 {[%clk 0:00:04]} 57. Ke5 {[%clk 0:00:06]}  Rc6 {[%clk 0:00:04]} 58. Rb3 {[%clk 0:00:05]}  Rc4 {[%clk 0:00:04]} 59. Kd6 {[%clk 0:00:04]}  Rd4+ {[%clk 0:00:04]} 60. Kc5 {[%clk 0:00:03]}  Rd5+ {[%clk 0:00:04]} 61. Kb6 {[%clk 0:00:03]}  Rc8 {[%clk 0:00:04]} 0-1


[Site "https://www.chess.com"]

[Event "Titled Tuesday Blitz March 14 Early 2023"]
[White "Torres Dominguez, David"]
[Black "Kopczynski, Michal"]
[WhiteFideId "2220857"]
[BlackFideId "1124200"]
[WhiteElo "1999"]
[BlackElo "2212"]
[Result "0-1"]
[Round "10"]
[TimeControl "180+2"]
[Date "2023.03.14"]
[WhiteClock "0:00:23"]
[BlackClock "0:01:03"]

1. e4 {[%clk 0:02:54]}  b6 {[%clk 0:02:58]} 2. d4 {[%clk 0:02:54]}  Bb7 {[%clk 0:02:59]} 3. Bd3 {[%clk 0:02:53]}  e6 {[%clk 0:02:59]} 4. Qe2 {[%clk 0:02:53]}  Nf6 {[%clk 0:03:00]} 5. Nf3 {[%clk 0:02:54]}  d5 {[%clk 0:03:00]} 6. Nbd2 {[%clk 0:02:54]}  c5 {[%clk 0:03:00]} 7. e5 {[%clk 0:02:49]}  Nfd7 {[%clk 0:02:58]} 8. c3 {[%clk 0:02:49]}  Nc6 {[%clk 0:02:58]} 9. a3 {[%clk 0:02:48]}  Qc7 {[%clk 0:02:58]} 10. O-O {[%clk 0:02:48]}  O-O-O {[%clk 0:02:58]} 11. b4 {[%clk 0:02:46]}  c4 {[%clk 0:02:58]} 12. Bc2 {[%clk 0:02:44]}  h6 {[%clk 0:02:58]} 13. a4 {[%clk 0:02:42]}  Re8 {[%clk 0:02:58]} 14. a5 {[%clk 0:02:41]}  b5 {[%clk 0:02:59]} 15. a6 {[%clk 0:02:41]}  Ba8 {[%clk 0:02:58]} 16. Ne1 {[%clk 0:02:33]}  f5 {[%clk 0:02:58]} 17. f4 {[%clk 0:02:22]}  g5 {[%clk 0:02:57]} 18. Ndf3 {[%clk 0:02:22]}  g4 {[%clk 0:02:55]} 19. Nd2 {[%clk 0:02:16]}  h5 {[%clk 0:02:50]} 20. Nb1 {[%clk 0:02:15]}  h4 {[%clk 0:02:50]} 21. Na3 {[%clk 0:02:14]}  Qb6 {[%clk 0:02:49]} 22. Be3 {[%clk 0:02:13]}  Qxa6 {[%clk 0:02:34]} 23. Qd1 {[%clk 0:02:01]}  Qb6 {[%clk 0:02:31]} 24. Qc1 {[%clk 0:01:57]}  Be7 {[%clk 0:02:29]} 25. Bd1 {[%clk 0:01:55]}  Nf8 {[%clk 0:02:28]} 26. Be2 {[%clk 0:01:55]}  Ng6 {[%clk 0:02:28]} 27. Nec2 {[%clk 0:01:52]}  Bf8 {[%clk 0:02:24]} 28. Qd2 {[%clk 0:01:49]}  Bh6 {[%clk 0:02:24]} 29. Ra2 {[%clk 0:01:47]}  Bb7 {[%clk 0:02:15]} 30. Rfa1 {[%clk 0:01:47]}  Kd7 {[%clk 0:02:14]} 31. Nb1 {[%clk 0:01:45]}  Ra8 {[%clk 0:02:13]} 32. Qc1 {[%clk 0:01:41]}  a5 {[%clk 0:02:13]} 33. bxa5 {[%clk 0:01:39]}  Rxa5 {[%clk 0:02:14]} 34. Rxa5 {[%clk 0:01:37]}  Nxa5 {[%clk 0:02:15]} 35. Qa3 {[%clk 0:01:36]}  Nb3 {[%clk 0:02:10]} 36. Ra2 {[%clk 0:01:34]}  Ra8 {[%clk 0:02:09]} 37. Qb2 {[%clk 0:01:33]}  Rxa2 {[%clk 0:02:07]} 38. Qxa2 {[%clk 0:01:32]}  Qa5 {[%clk 0:02:07]} 39. Qxa5 {[%clk 0:01:28]}  Nxa5 {[%clk 0:02:08]} 40. g3 {[%clk 0:01:28]}  Bf8 {[%clk 0:02:03]} 41. Bc1 {[%clk 0:01:27]}  Nc6 {[%clk 0:01:56]} 42. Ba3 {[%clk 0:01:26]}  Bxa3 {[%clk 0:01:51]} 43. Nbxa3 {[%clk 0:01:26]}  Ba6 {[%clk 0:01:51]} 44. Kf2 {[%clk 0:01:18]}  Kc7 {[%clk 0:01:50]} 45. Ke3 {[%clk 0:01:16]}  hxg3 {[%clk 0:01:45]} 46. hxg3 {[%clk 0:01:14]}  Kb6 {[%clk 0:01:46]} 47. Nb4 {[%clk 0:01:09]}  Nge7 {[%clk 0:01:42]} 48. Nac2 {[%clk 0:01:08]}  Nxb4 {[%clk 0:01:35]} 49. Nxb4 {[%clk 0:01:07]}  Nc6 {[%clk 0:01:35]} 50. Kd2 {[%clk 0:01:04]}  Bb7 {[%clk 0:01:34]} 51. Kc2 {[%clk 0:00:56]}  Ka5 {[%clk 0:01:34]} 52. Nxc6+ {[%clk 0:00:50]}  Bxc6 {[%clk 0:01:35]} 53. Kb2 {[%clk 0:00:51]}  b4 {[%clk 0:01:34]} 54. Bd1 {[%clk 0:00:51]}  Ba4 {[%clk 0:01:32]} 55. Be2 {[%clk 0:00:50]}  bxc3+ {[%clk 0:01:25]} 56. Kxc3 {[%clk 0:00:50]}  Bb3 {[%clk 0:01:25]} 57. Bf1 {[%clk 0:00:49]}  Bd1 {[%clk 0:01:22]} 58. Bg2 {[%clk 0:00:47]}  Bf3 {[%clk 0:01:20]} 59. Bf1 {[%clk 0:00:46]}  Ka4 {[%clk 0:01:19]} 60. Kc2 {[%clk 0:00:36]}  Ka3 {[%clk 0:01:09]} 61. Kc3 {[%clk 0:00:35]}  Ka2 {[%clk 0:01:09]} 62. Kc2 {[%clk 0:00:33]}  Be4+ {[%clk 0:01:08]} 63. Kc3 {[%clk 0:00:32]}  Kb1 {[%clk 0:01:08]} 64. Be2 {[%clk 0:00:32]}  Kc1 {[%clk 0:01:04]} 65. Bf1 {[%clk 0:00:23]}  Kd1 {[%clk 0:01:03]} 0-1


[Site "https://www.chess.com"]